bitfinex-derivatives/quotes_SOLF0:USTF0_20240906
["timestamp","ask_amount","ask_price","bid_price","bid_amount"]
[1725645140361,3.9477,126.73,126.69,26.53]
[1725645140560,3.87594186,126.75,126.69,26.53]
[1725645141765,3.87594186,126.75,126.64,4.0935]
[1725645142070,116.04385862,126.76,126.67,26.53]
[1725645142369,3.9485,126.7,126.67,26.53]
[1725645143369,3.9488,126.69,126.67,26.53]
[1725645143569,146.50199379,126.76,126.66,26.53]
[1725645143768,0.42707072,126.75,126.66,26.53]
[1725645144065,3.9487,126.7,126.68,26.53]
[1725645145064,146.50199379,126.76,126.68,26.53]
[1725645145268,0.42703616,126.75,126.68,26.53]
[1725645145664,3.9487,126.7,126.68,26.53]
[1725645145872,1.3556,126.74,126.68,26.53]
[1725645146064,3.9481,126.72,126.68,26.53]
[1725645146260,1.3556,126.74,126.68,26.53]
[1725645146667,3.92813517,126.76,126.69,26.53]
[1725645146878,0.42701248,126.75,126.71,26.53]
[1725645147072,0.42701248,126.74,126.7,26.53]
[1725645147270,3.9481,126.72,126.7,26.53]
[1725645147772,3.94029828,126.76,126.67,26.53]
[1725645147973,0.42699614,126.75,126.67,26.53]
[1725645148168,0.42699614,126.74,126.66,26.53]
[1725645148365,27.8323,126.73,126.64,29.2202]
[1725645148577,28.24349988,126.72,126.64,1.3956]
[1725645148770,27.8164,126.72,126.64,1.3956]
[1725645149079,29.1914,126.72,126.64,1.3956]
[1725645149270,0.42700229,126.71,126.64,1.3956]
[1725645149979,3.9497,126.67,126.64,1.3956]
[1725645150277,3.98912923,126.69,126.62,30.4807]
[1725645150569,3.9494,126.67,126.63,3.89935016]
[1725645150968,3.9494,126.67,126.63,7.84995016]
[1725645151175,3.9492,126.68,126.62,26.53]
[1725645151369,3.9492,126.68,126.64,26.53]
[1725645151579,2.6614,126.72,126.65,7.84302839]
[1725645151874,2.6614,126.72,126.65,5.33780703]
[1725645152274,3.9491,126.68,126.65,5.33780703]
[1725645152471,2.6614,126.72,126.65,5.33780703]
[1725645152671,1.3023,126.73,126.66,26.53]
[1725645152974,1.3228,126.76,126.68,26.53]
[1725645153173,0.42695068,126.75,126.68,26.53]
[1725645153384,3.9477,126.73,126.69,3.9487]
[1725645153567,1.3228,126.76,126.69,3.9487]
[1725645153881,4.33143937,126.75,126.68,26.53]
[1725645154081,3.9478,126.72,126.68,30.4789]
[1725645154672,3.9476,126.73,126.69,3.9487]
[1725645154875,3.9476,126.73,126.7,26.53]
[1725645155170,3.9045251,126.75,126.7,26.53]
[1725645155578,1.3228,126.76,126.7,26.53]
[1725645155772,0.42694654,126.75,126.68,26.53]
[1725645155973,26.95694654,126.75,126.66,26.53]
[1725645156172,4.35358912,126.74,126.68,26.53]
[1725645156374,3.9474,126.74,126.7,30.4783]
[1725645157280,3.9476,126.73,126.7,26.53]
[1725645158879,4.02356836,126.75,126.68,26.53]
[1725645159180,26.53,126.73,126.65,5.33780703]
[1725645159376,3.9492,126.68,126.65,5.33780703]
[1725645159571,3.9492,126.68,126.65,1.3784]
[1725645159883,3.9496,126.67,126.65,1.3784]
[1725645160079,26.53,126.71,126.63,1.3225]
[1725645160276,1.7949581,126.7,126.63,5.27970192]
[1725645160473,3.9498,126.66,126.63,5.27970192]
[1725645160781,1.3678,126.7,126.64,26.53]
[1725645161078,3.9496,126.67,126.64,26.53]
[1725645161380,1.3678,126.7,126.64,26.53]
[1725645161576,3.9493,126.68,126.64,26.53]
[1725645161778,1.3678,126.7,126.64,26.53]
[1725645162171,1.3678,126.7,126.63,5.27970192]
[1725645162382,0.42699915,126.69,126.63,5.27970192]
[1725645162681,3.9499,126.66,126.62,26.53]
[1725645163182,3.9496,126.67,126.62,30.4807]
[1725645163381,26.53,126.73,126.64,26.53]
[1725645163576,0.42721172,126.71,126.64,26.53]
[1725645164282,0.42721172,126.71,126.61,1.3182]
[1725645164283,3.9499,126.66,126.62,26.53]
[1725645164478,3.9499,126.66,126.63,3.89925758]
[1725645165179,3.9499,126.66,126.62,30.4809]
[1725645165378,1.3651,126.74,126.64,26.53]
[1725645165581,4.45074524,126.73,126.67,26.53]
[1725645165876,0.42709027,126.72,126.67,26.53]
[1725645166077,4.02373981,126.73,126.67,26.53]
[1725645166384,4.02373981,126.73,126.67,30.53556145]
[1725645167078,1.3651,126.74,126.67,30.53556145]
[1725645167479,4.00626618,126.74,126.69,26.53]
[1725645167683,1.2892,126.77,126.69,26.53]
[1725645167884,0.42683994,126.76,126.69,26.53]
[1725645168087,0.42683994,126.76,126.69,30.4786]
[1725645168378,0.42683994,126.76,126.69,26.53]
[1725645169080,0.42683994,126.76,126.71,26.53]
[1725645169387,4.37353994,126.76,126.73,26.53]
[1725645169583,3.9467,126.76,126.73,26.53]
[1725645169881,3.946,126.78,126.75,26.53]
[1725645170087,3.99837201,126.79,126.75,26.53]
[1725645170382,3.9468,126.76,126.73,26.53]
[1725645170588,3.94229607,126.79,126.73,26.53]
[1725645170783,0.42644252,126.78,126.73,26.53]
[1725645170980,4.04220601,126.79,126.73,26.53]
[1725645171286,1.3599,126.81,126.73,26.53]
[1725645171485,3.946,126.78,126.73,30.4773]
[1725645171684,3.870819,126.79,126.73,30.4773]
[1725645171987,1.3599,126.81,126.73,26.53]
[1725645172182,0.42640804,126.8,126.73,26.53]
[1725645172383,3.89016915,126.79,126.73,26.53]
[1725645172581,0.42640804,126.78,126.73,26.53]
[1725645172780,1.3599,126.81,126.73,30.4773]
[1725645172999,0.42628914,126.8,126.73,30.4773]
[1725645173187,3.9463,126.78,126.74,4.03162036]
[1725645173398,1.3599,126.81,126.74,4.03162036]
[1725645173585,0.42631626,126.8,126.73,26.53]
[1725645173786,1.3599,126.81,126.73,26.53]
[1725645173985,0.42626509,126.8,126.73,26.53]
[1725645174290,4.03280497,126.79,126.73,30.4775]
[1725645174486,1.3599,126.81,126.73,26.53]
[1725645174685,0.42639912,126.8,126.73,26.53]
[1725645174885,0.42639912,126.8,126.72,3.9477]
[1725645175080,0.42639912,126.8,126.71,26.53]
[1725645175594,3.9471,126.75,126.71,30.4781]
[1725645175984,4.03438445,126.77,126.71,26.53]
[1725645175985,3.9472,126.74,126.71,26.53]
[1725645176185,3.9472,126.74,126.68,1.2988]
[1725645176186,26.53,126.79,126.69,26.53]
[1725645176492,0.42654243,126.78,126.69,26.53]
[1725645176886,0.42654243,126.78,126.69,30.4786]
[1725645177280,3.9475,126.74,126.69,30.4786]
[1725645177485,3.9475,126.74,126.7,3.9484]
[1725645177886,3.9476,126.73,126.69,26.53]
[1725645178188,26.53,126.77,126.68,1.2988]
[1725645178384,3.9474,126.74,126.68,1.2988]
[1725645178585,26.53,126.79,126.71,26.53]
[1725645178790,0.4265616,126.78,126.71,26.53]
[1725645179192,3.9475,126.73,126.71,26.53]
[1725645179586,30.44693669,126.79,126.71,26.53]
[1725645179791,0.42657039,126.78,126.71,30.4781]
[1725645180189,3.9473,126.74,126.71,26.53]
[1725645180591,30.44693669,126.79,126.69,26.53]
[1725645180794,3.948,126.72,126.68,5.2477]
[1725645180986,26.53,126.76,126.68,1.2988]
[1725645181192,1.72766362,126.75,126.68,1.2988]
[1725645181388,3.9486,126.7,126.68,1.2988]
[1725645181993,3.94844801,126.72,126.68,1.2988]
[1725645182292,1.3008,126.75,126.66,7.92964507]
[1725645182494,0.42691702,126.74,126.66,7.92964507]
[1725645182692,3.9486,126.7,126.66,7.92964507]
[1725645183090,3.9486,126.7,126.67,3.9494]
[1725645183300,3.9491,126.68,126.65,27.8625]
[1725645183590,27.8665,126.74,126.65,1.3325]
[1725645183793,3.9492,126.68,126.65,1.3325]
[1725645184101,4.01463955,126.7,126.65,1.3325]
[1725645184393,3.9496,126.67,126.65,1.3325]
[1725645184699,3.97514093,126.72,126.65,27.8625]
[1725645184992,3.9489,126.69,126.66,3.9496]
[1725645185298,3.95657658,126.72,126.65,27.8625]
[1725645185500,3.9488,126.7,126.66,3.9495]
[1725645185694,3.9488,126.7,126.67,26.53]
[1725645185897,3.94314705,126.72,126.67,26.53]
[1725645186093,3.9489,126.69,126.67,26.53]
[1725645186288,4.03550576,126.71,126.65,27.8625]
[1725645186494,3.9491,126.68,126.65,31.8124]
[1725645187790,3.949,126.69,126.66,3.9496]
[1725645187990,1.3008,126.75,126.67,26.53]
[1725645188197,230.91693669,126.79,126.7,26.53]
[1725645188198,227.0,126.79,126.7,26.53]
[1725645188396,0.42659293,126.74,126.7,30.43197654]
[1725645188598,3.91501342,126.76,126.7,30.43197654]
[1725645188795,3.9474,126.74,126.71,3.9479]
[1725645189000,3.9474,126.74,126.71,5.356]
[1725645190102,3.91501342,126.76,126.72,26.53]
[1725645190296,26.53,126.8,126.72,26.53]
[1725645190498,0.42637754,126.79,126.72,26.53]
[1725645190798,3.9469,126.75,126.72,30.4778]
[1725645191001,3.9469,126.75,126.72,26.53]
[1725645191200,3.9467,126.76,126.72,30.4776]
[1725645191400,3.9467,126.76,126.72,31.8891]
[1725645192201,3.994423,126.78,126.71,1.4081]
[1725645192403,1.71436578,126.77,126.71,1.4081]
[1725645192597,3.9478,126.72,126.71,1.4081]
[1725645192797,1.2879,126.77,126.68,31.82535073]
[1725645193001,0.42655455,126.76,126.68,31.82535073]
[1725645193303,0.42655455,126.76,126.69,3.9485]
[1725645193699,3.9475,126.74,126.69,3.9485]
[1725645193999,1.2879,126.77,126.7,26.53]
[1725645194198,3.97973089,126.78,126.72,26.53]
[1725645194401,0.42642471,126.77,126.7,26.53]
[1725645194607,5.29928664,126.79,126.7,26.53]
[1725645194907,0.42645819,126.78,126.7,26.53]
[1725645195108,4.33589117,126.78,126.7,26.53]
[1725645195303,0.42645819,126.77,126.68,27.9415]
[1725645195699,3.9477,126.73,126.68,27.9415]
[1725645196601,3.9477,126.73,126.69,3.9487]
[1725645196803,3.91922073,126.77,126.68,27.9415]
[1725645197106,0.42672698,126.76,126.68,27.9415]
[1725645197306,3.9479,126.72,126.68,27.9415]
[1725645197504,3.93304444,126.76,126.68,27.9415]
[1725645197704,26.53,126.77,126.68,27.9415]
[1725645197905,3.9483,126.71,126.68,27.9415]
[1725645198299,30.52347382,126.77,126.68,27.9415]
[1725645198499,26.53,126.75,126.67,1.4128]
[1725645198706,0.4267817,126.74,126.67,1.4128]
[1725645198902,3.9487,126.7,126.67,1.4128]
[1725645199201,27.8488,126.75,126.67,1.4128]
[1725645199400,0.42683346,126.74,126.67,1.4128]
[1725645199606,3.9488,126.69,126.67,1.4128]
[1725645200208,3.9484,126.71,126.67,5.3621]
[1725645200705,3.9487,126.7,126.67,2.7231]
[1725645201107,27.8488,126.75,126.67,1.4128]
[1725645201307,26.53,126.68,126.65,3.0]
[1725645201605,30.49716092,126.68,126.65,3.0]
[1725645201802,3.9497,126.66,126.65,3.0]
[1725645204106,3.96716092,126.68,126.65,3.0]
[1725645204312,27.8804,126.72,126.65,3.0]
[1725645204503,0.42719695,126.71,126.65,3.0]
[1725645205108,3.9494,126.67,126.65,3.0]
[1725645205513,3.98445591,126.68,126.65,3.0]
[1725645205712,27.8804,126.72,126.65,3.0]
[1725645206009,0.42717575,126.71,126.65,3.0]
[1725645206209,3.9497,126.66,126.65,3.0]
[1725645206509,7.81409165,126.66,126.65,3.0]
[1725645209110,7.81409165,126.66,126.65,0.8742]
[1725645209604,3.9516,126.6,126.59,1.3675]
[1725645210005,3.9516,126.6,126.58,1.3103]
[1725645210511,3.9519,126.59,126.56,1.3874]
[1725645212310,3.9517,126.6,126.56,1.3874]
[1725645212504,26.53,126.65,126.56,27.9174]
[1725645212709,0.42771191,126.64,126.56,29.2323]
[1725645212899,4.28880532,126.64,126.56,29.2323]
[1725645213099,3.9513,126.62,126.56,29.2323]
[1725645213700,3.9513,126.62,126.58,30.4819]
[1725645214615,3.97495732,126.64,126.56,29.2323]
[1725645214811,26.53,126.66,126.56,29.2323]
[1725645214812,27.9323,126.66,126.56,29.2323]
[1725645215010,0.42773528,126.65,126.56,29.2323]
[1725645215203,4.35019165,126.65,126.56,29.2323]
[1725645215404,3.92245637,126.65,126.56,29.2323]
[1725645215604,3.9514,126.61,126.57,3.9523]
[1725645217912,26.53,126.64,126.56,2.7023]
[1725645218110,30.45759617,126.65,126.56,29.2323]
[1725645218315,3.9511,126.62,126.56,29.2323]
[1725645218516,26.53,126.65,126.56,29.2323]
[1725645218713,0.42779137,126.64,126.56,29.2323]
[1725645218915,3.9515,126.61,126.56,29.2323]
[1725645219115,26.53,126.67,126.58,26.53]
[1725645219413,3.9508,126.63,126.59,3.9517]
[1725645220312,26.53,126.66,126.56,29.2323]
[1725645220515,13.08135101,126.68,126.56,29.2323]
[1725645220516,26.53,126.62,126.56,1.3874]
[1725645220712,3.952,126.59,126.56,1.3874]
[1725645220916,4.02762454,126.61,126.56,1.3874]
[1725645221218,3.9517,126.6,126.56,5.34]
[1725645221714,4.02999675,126.61,126.56,5.34]
[1725645221913,26.53,126.64,126.56,5.34]
[1725645222223,0.42772185,126.63,126.57,3.9524]
[1725645222517,26.53,126.64,126.57,3.9524]
[1725645222916,26.53,126.64,126.56,5.34]
[1725645223516,26.53,126.64,126.56,1.3874]
[1725645223711,26.53,126.66,126.56,27.9174]
[1725645223917,0.42754629,126.65,126.58,26.53]
[1725645224116,3.9505,126.64,126.58,26.53]
[1725645224509,3.9509,126.63,126.58,30.4821]
[1725645224712,26.53,126.67,126.58,26.53]
[1725645224921,26.53,126.64,126.56,1.3874]
[1725645225121,3.9521,126.59,126.56,1.3874]
[1725645226013,3.9522,126.58,126.56,1.3874]
[1725645227212,3.9525,126.57,126.53,3.9536]
[1725645227412,3.9525,126.57,126.53,5.3522]
[1725645228115,3.9525,126.57,126.54,3.9534]
[1725645228429,3.9528,126.56,126.53,1.3986]
[1725645229016,3.9527,126.57,126.54,3.9534]
[1725645229720,3.9528,126.57,126.53,5.3522]
[1725645230114,27.8469,126.62,126.53,5.3522]
[1725645230315,0.42787356,126.61,126.53,5.3522]
[1725645230509,0.42787356,126.61,126.53,1.3986]
[1725645230716,26.53,126.64,126.54,29.1643]
[1725645230914,3.9517,126.6,126.54,29.1643]
[1725645231116,26.53,126.64,126.58,3.952]
[1725645231421,0.42773737,126.63,126.58,3.952]
[1725645231613,3.9511,126.62,126.58,3.952]
[1725645232519,26.53,126.64,126.56,26.53]
[1725645232723,0.42772402,126.63,126.56,26.53]
[1725645233222,3.9512,126.62,126.58,3.952]
[1725645233615,26.53,126.64,126.56,26.53]
[1725645233816,3.9512,126.62,126.57,3.9522]
[1725645234415,3.9512,126.62,126.58,3.952]
[1725645235819,26.53,126.64,126.54,29.1643]
[1725645236017,0.42771798,126.63,126.54,29.1643]
[1725645236518,0.42771798,126.63,126.56,26.53]
[1725645236717,29.2655,126.66,126.56,26.53]
[1725645237023,0.42768829,126.65,126.56,26.53]
[1725645237421,3.9511,126.62,126.58,3.9522]
[1725645237613,29.2655,126.66,126.58,26.53]
[1725645237814,3.9505,126.64,126.6,3.9513]
[1725645238221,3.9505,126.64,126.59,1.3057]
[1725645238423,3.9505,126.64,126.6,3.9514]
[1725645238820,1.396,126.66,126.59,1.3057]
[1725645239321,3.9506,126.64,126.6,3.9514]
[1725645239824,1.396,126.66,126.6,3.9514]
[1725645240124,0.42752594,126.65,126.6,3.9514]
[1725645240521,3.9506,126.64,126.6,3.9514]
[1725645240819,1.396,126.66,126.6,3.9514]
[1725645241020,3.9496,126.67,126.61,31.71991603]
[1725645241330,2.6966,126.71,126.63,26.53]
[1725645241519,4.37640904,126.7,126.65,3.9498]
[1725645241823,3.88033679,126.69,126.63,26.53]
[1725645242026,0.42729293,126.68,126.64,3.9502]
[1725645242229,3.97994409,126.69,126.64,3.9502]
[1725645242527,1.3223,126.73,126.63,26.53]
[1725645242723,0.42725092,126.72,126.63,26.53]
[1725645243515,3.9488,126.69,126.65,3.9498]
[1725645244427,26.53,126.72,126.63,3.9504]
[1725645244727,3.9496,126.67,126.63,3.9504]
[1725645244924,26.53,126.72,126.63,26.53]
[1725645245229,4.37547176,126.71,126.65,26.53]
[1725645245431,4.01196073,126.73,126.66,27.8534]
[1725645245630,27.8363,126.75,126.67,1.3624]
[1725645245824,0.42675988,126.74,126.67,1.3624]
[1725645246029,27.8597,126.77,126.68,26.53]
[1725645246225,0.42662141,126.76,126.7,26.53]
[1725645246421,3.9463,126.77,126.72,30.4778]
[1725645246618,1.3583,126.79,126.72,30.4778]
[1725645246825,0.42640899,126.78,126.72,30.4778]
[1725645247421,3.9466,126.76,126.72,30.4778]
[1725645248334,3.9463,126.77,126.73,3.9473]
[1725645248532,1.3583,126.79,126.72,26.53]
[1725645248725,0.42638546,126.78,126.72,26.53]
[1725645248933,3.9468,126.76,126.72,26.53]
[1725645249134,3.9468,126.76,126.72,27.8458]
[1725645249332,3.93454611,126.8,126.72,27.8458]
[1725645249530,0.42632788,126.79,126.74,3.947]
[1725645250331,4.37222788,126.79,126.74,30.477]
[1725645250527,3.9459,126.79,126.74,30.477]
[1725645250941,132.66933077,126.85,126.74,26.53]
[1725645251141,0.42612358,126.84,126.75,27.8204]
[1725645251334,4.38271868,126.84,126.75,5.24344127]
[1725645251539,0.42612358,126.83,126.75,5.24344127]
[1725645251934,0.42612358,126.82,126.75,5.24344127]
[1725645252134,0.42612358,126.81,126.75,5.24344127]
[1725645252341,3.9454,126.8,126.76,3.9464]
[1725645253536,3.9452,126.81,126.77,3.9463]
[1725645253738,111.50054868,126.85,126.78,1.3864]
[1725645253946,0.42589105,126.84,126.78,1.3864]
[1725645254139,0.42589105,126.84,126.79,26.53]
[1725645254340,4.3949341,126.87,126.8,1.4069]
[1725645254539,0.42571663,126.86,126.8,1.4069]
[1725645254934,4.0331,126.91,126.81,26.53]
[1725645255138,0.42550024,126.9,126.83,26.53]
[1725645255338,0.42550024,126.89,126.84,1.3241]
[1725645255540,26.53,126.92,126.84,1.3241]
[1725645255541,3.943,126.88,126.84,9.27150528]
[1725645255935,1.3538,126.93,126.84,9.27150528]
[1725645255936,3.9427,126.89,126.84,9.27150528]
[1725645256738,1.3538,126.93,126.84,1.3241]
[1725645256933,0.42525161,126.92,126.84,1.3241]
[1725645257344,26.95525161,126.92,126.84,1.3241]
[1725645257647,3.9434,126.87,126.84,1.3241]
[1725645257839,3.85522973,126.87,126.84,1.3241]
[1725645258046,26.53,126.92,126.84,1.3241]
[1725645258243,0.42544066,126.91,126.84,1.3241]
[1725645259445,3.9429,126.88,126.84,5.268]
[1725645259747,26.53,126.92,126.84,1.3241]
[1725645260050,0.42536267,126.91,126.84,1.3241]
[1725645260545,0.42536267,126.9,126.84,1.3241]
[1725645260850,27.8838,126.93,126.84,1.3241]
[1725645261148,3.943,126.88,126.84,5.2681]
[1725645261845,3.9427,126.89,126.84,5.2681]
[1725645262150,27.8838,126.93,126.84,5.2681]
[1725645262353,3.9427,126.89,126.85,3.9437]
[1725645262647,27.8838,126.93,126.84,1.3241]
[1725645262847,0.42523968,126.92,126.84,1.3241]
[1725645263848,26.95523968,126.92,126.84,1.3241]
[1725645264049,3.9432,126.87,126.84,1.3241]
[1725645264248,26.53,126.92,126.84,1.3241]
[1725645264455,0.42538849,126.91,126.84,1.3241]
[1725645264742,3.943,126.88,126.84,5.268]
[1725645265342,3.9432,126.87,126.84,1.3241]
[1725645265643,3.95158489,126.89,126.84,1.3241]
[1725645265951,4.36847456,126.88,126.84,1.3241]
[1725645266144,3.9431,126.88,126.84,1.3241]
[1725645266451,27.8838,126.93,126.85,26.53]
[1725645266650,0.42536425,126.92,126.85,26.53]
[1725645266852,27.8838,126.93,126.85,30.4736]
[1725645267047,0.42536335,126.92,126.85,30.4736]
[1725645267551,3.9427,126.89,126.85,30.4736]
[1725645267745,0.42536335,126.92,126.84,1.3241]
[1725645267746,0.42536335,126.88,126.84,5.268]
[1725645268051,0.42536335,126.92,126.84,1.3241]
[1725645268346,0.42522902,126.91,126.85,26.53]
[1725645268546,0.42522902,126.92,126.85,26.53]
[1725645268741,0.42496997,126.91,126.87,3.943]
[1725645268946,0.42496997,126.92,126.87,26.53]
[1725645269143,3.9422,126.9,126.87,26.53]
[1725645269539,3.9054252,126.89,126.85,26.53]
[1725645269740,1.3538,126.93,126.85,30.4737]
[1725645269939,0.42511006,126.92,126.85,30.4737]
[1725645270150,3.9427,126.89,126.85,30.4737]
[1725645270747,3.943,126.88,126.85,26.53]
[1725645270948,3.89131544,126.89,126.84,1.3241]
[1725645271249,0.42533771,126.88,126.84,1.3241]
[1725645271551,3.88934316,126.88,126.84,1.3241]
[1725645271751,26.95511006,126.92,126.84,1.3241]
[1725645271945,3.9435,126.86,126.84,1.3241]
[1725645272153,3.93786133,126.88,126.84,1.3241]
[1725645272348,26.95511006,126.92,126.84,1.3241]
[1725645272349,0.42538509,126.87,126.84,1.3241]
[1725645272549,3.9436,126.86,126.84,1.3241]
[1725645272745,4.03489768,126.88,126.84,1.3241]
[1725645272953,26.95511006,126.92,126.84,1.3241]
[1725645273147,0.42531967,126.91,126.85,26.53]
[1725645274143,0.42511006,126.92,126.85,26.53]
[1725645274343,0.42495619,126.91,126.85,26.53]
[1725645274946,3.943,126.88,126.85,26.53]
[1725645275347,0.42511006,126.92,126.85,26.53]
[1725645275548,3.9429,126.88,126.85,30.4736]
[1725645275747,0.42511006,126.92,126.86,26.53]
[1725645276247,0.42490366,126.91,126.86,26.53]
[1725645276447,0.42511006,126.92,126.86,26.53]
[1725645276648,0.42511006,126.92,126.84,1.3241]
[1725645276649,0.42490707,126.91,126.85,26.53]
[1725645276849,0.42490707,126.91,126.84,1.3241]
[1725645277353,26.95511006,126.92,126.84,1.3241]
[1725645277853,3.9433,126.87,126.83,30.4743]
[1725645278448,3.9435,126.86,126.83,30.4743]
[1725645278655,3.9435,126.86,126.83,26.53]
[1725645279254,3.9432,126.87,126.83,30.4742]
[1725645279849,3.85580523,126.88,126.83,26.53]
[1725645280048,26.53,126.92,126.83,26.53]
[1725645280352,0.42505725,126.91,126.83,26.53]
[1725645281352,3.9434,126.87,126.83,26.53]
[1725645281556,3.98235801,126.87,126.79,27.8093]
[1725645281752,3.9446,126.83,126.79,27.8093]
[1725645281946,3.93264758,126.83,126.79,1.2793]
[1725645282146,21.22,126.86,126.79,1.2793]
[1725645282351,3.9452,126.81,126.79,1.2793]
[1725645282551,3.9452,126.81,126.77,21.22]
[1725645282953,3.9452,126.81,126.77,25.1661]
[1725645283962,4.04232615,126.83,126.78,26.52]
[1725645284149,27.8669,126.87,126.78,26.52]
[1725645284663,31.71694039,126.87,126.78,26.52]
[1725645284956,5.19694039,126.87,126.81,26.52]
[1725645285457,3.85004039,126.87,126.81,26.52]
[1725645285655,3.9436,126.86,126.82,9.31794497]
[1725645285851,3.97042816,126.88,126.82,5.37334497]
[1725645286052,26.52,126.91,126.82,5.37334497]
[1725645286253,3.9436,126.86,126.82,9.31804497]
[1725645286860,4.00579373,126.88,126.83,30.4643]
[1725645286861,3.9433,126.87,126.83,30.4643]
[1725645287158,26.52,126.91,126.83,26.52]
[1725645287358,3.9437,126.86,126.82,10.66264497]
[1725645287761,3.944,126.85,126.82,2.6742]
[1725645287960,4.01723773,126.88,126.82,6.67644215]
[1725645288151,26.52,126.91,126.82,6.67644215]
[1725645288357,3.9436,126.86,126.82,10.62114215]
[1725645288961,3.9436,126.86,126.82,12.02984215]
[1725645289159,3.944,126.85,126.82,4.0829]
[1725645289355,26.52,126.91,126.83,3.94194889]
[1725645289560,3.9436,126.86,126.82,8.03747575]
[1725645289758,3.9436,126.86,126.82,4.0829]
[1725645290266,3.9438,126.85,126.82,8.0274]
[1725645290663,3.9438,126.85,126.82,4.0829]
[1725645291265,3.9438,126.85,126.82,8.0276]
[1725645294263,3.9437,126.86,126.83,3.9443]
[1725645295060,3.9438,126.85,126.83,3.9443]
[1725645295262,3.91077632,126.87,126.83,3.9443]
[1725645295460,3.9434,126.87,126.84,3.9439]
[1725645295662,4.02803824,126.89,126.84,26.52]
[1725645295861,2.754,126.92,126.84,26.52]
[1725645296062,2.754,126.92,126.85,3.9437]
[1725645296063,3.943,126.88,126.85,3.9437]
[1725645296561,3.9428,126.89,126.86,30.4634]
[1725645298959,3.9429,126.88,126.86,30.4634]
[1725645299163,3.9429,126.88,126.86,26.52]
[1725645299365,1.355,126.92,126.86,26.52]
[1725645299765,1.355,126.92,126.83,26.52]
[1725645299966,0.42495334,126.91,126.82,8.10738757]
[1725645300171,3.9432,126.87,126.84,3.944]
[1725645300369,3.8534476,126.87,126.84,3.944]
[1725645300669,1.355,126.92,126.85,26.52]
[1725645300968,3.9427,126.89,126.86,3.9435]
[1725645301872,3.9424,126.9,126.86,3.9435]
[1725645302071,1.355,126.92,126.86,3.9435]
[1725645302260,3.9425,126.9,126.86,3.9435]
[1725645302460,1.355,126.92,126.86,3.9435]
[1725645302677,3.9426,126.89,126.86,3.9435]
[1725645302974,1.355,126.92,126.86,3.9435]
[1725645303370,1.355,126.92,126.85,30.4636]
[1725645303774,3.9423,126.9,126.86,3.9433]
[1725645303973,21.22,126.94,126.87,21.22]
[1725645304268,0.42479591,126.93,126.87,21.22]
[1725645304467,3.9424,126.9,126.87,21.22]
[1725645304661,1.307,126.94,126.87,21.22]
[1725645304867,1.307,126.94,126.84,3.91774404]
[1725645304868,1.2753,126.98,126.88,22.5222]
[1725645305067,3.941,126.94,126.9,25.162]
[1725645305371,3.97959309,126.96,126.92,21.22]
[1725645305674,1.307,126.98,126.92,21.22]
[1725645306268,26.53160813,126.98,126.9,21.22]
[1725645306464,21.22,126.96,126.89,22.6169]
[1725645306774,25.07831927,126.96,126.89,22.6169]
[1725645306971,3.9415,126.93,126.89,22.6169]
[1725645307170,3.85831927,126.96,126.9,21.22]
[1725645307371,3.9405,126.96,126.91,3.9419]
[1725645307677,22.527,126.98,126.91,3.9419]
[1725645307678,1.307,126.98,126.92,21.22]